bitfinex/quotes_BTCUSD_20241202
["timestamp","ask_amount","ask_price","bid_price","bid_amount"]
[1733168600047,0.208698,95833.0,95812.0,0.23599232]
[1733168600292,0.208704,95830.0,95813.0,0.1313]
[1733168600531,0.04162548,95840.0,95815.0,0.1313]
[1733168600532,0.208695,95834.0,95815.0,0.1313]
[1733168600774,0.208695,95834.0,95816.0,0.15419212]
[1733168601018,0.208702,95831.0,95817.0,0.1313]
[1733168601257,0.208695,95834.0,95818.0,0.10284521]
[1733168601511,0.208695,95834.0,95819.0,0.0818]
[1733168601740,0.208702,95831.0,95820.0,0.20567667]
[1733168601985,0.208695,95834.0,95820.0,0.21056744]
[1733168602273,0.208695,95834.0,95821.0,0.0495]
[1733168602490,0.208695,95834.0,95827.0,0.03]
[1733168603416,0.0008649,95829.0,95828.0,0.00489077]
[1733168603637,0.208707,95828.0,95827.0,0.03]
[1733168604533,0.25218845,95828.0,95827.0,0.03]
[1733168604778,0.25033248,95828.0,95827.0,0.03]
[1733168604994,0.25033248,95828.0,95827.0,0.039]
[1733168605426,0.25033248,95828.0,95827.0,0.044]
[1733168605672,0.25033248,95828.0,95827.0,0.035]
[1733168605905,0.25033248,95828.0,95827.0,0.044]
[1733168606117,0.25033248,95828.0,95827.0,0.03]
[1733168606544,0.25033248,95828.0,95827.0,0.036]
[1733168607316,0.25033248,95828.0,95827.0,0.006]
[1733168609388,0.208707,95828.0,95827.0,0.006]
[1733168609609,0.208707,95828.0,95827.0,0.0512]
[1733168610940,0.40034748,95821.0,95820.0,5.5e-07]
[1733168611158,0.42334748,95821.0,95820.0,5.5e-07]
[1733168612549,0.52619269,95821.0,95820.0,5.5e-07]
[1733168612772,0.74680806,95821.0,95820.0,5.5e-07]
[1733168612991,0.74680806,95821.0,95797.0,0.00173]
[1733168612992,0.40039748,95798.0,95797.0,0.00173]
[1733168615689,0.40039748,95798.0,95797.0,0.00273]
[1733168615932,0.40039748,95798.0,95797.0,0.00573]
[1733168616158,0.40039748,95798.0,95797.0,0.00473]
[1733168617526,0.40039748,95798.0,95797.0,0.00673]
[1733168618407,0.40039748,95798.0,95797.0,0.00473]
[1733168618408,0.42339748,95798.0,95797.0,0.00473]
[1733168618634,0.42339748,95798.0,95797.0,0.00273]
[1733168618867,0.42439748,95798.0,95797.0,0.00273]
[1733168619087,0.42439748,95798.0,95797.0,0.00173]
[1733168619304,0.42339748,95798.0,95797.0,0.00173]
[1733168621153,0.42339748,95798.0,95797.0,0.00273]
[1733168621382,0.42339748,95798.0,95797.0,0.00173]
[1733168626111,0.04162548,95796.0,95795.0,9.1e-07]
[1733168626321,0.31932666,95796.0,95795.0,9.1e-07]
[1733168626534,0.31747069,95796.0,95795.0,9.1e-07]
[1733168627230,0.31747069,95796.0,95795.0,0.00100091]
[1733168628441,0.208832,95771.0,95754.0,0.0017296]
[1733168628656,0.41951997,95771.0,95768.0,0.00231474]
[1733168628877,0.208835,95769.0,95768.0,0.00231474]
[1733168629102,0.40231645,95769.0,95768.0,0.00231474]
[1733168629353,0.40046048,95769.0,95768.0,0.00231474]
[1733168630259,0.40046048,95769.0,95768.0,0.00731474]
[1733168630260,0.42346048,95769.0,95768.0,0.00731474]
[1733168630473,0.42346048,95769.0,95768.0,0.00231474]
[1733168630897,0.4441456,95769.0,95768.0,0.00531474]
[1733168631344,0.4441456,95769.0,95768.0,0.00731474]
[1733168631817,0.4441456,95769.0,95754.0,0.0017296]
[1733168631818,0.208866,95755.0,95754.0,0.0017296]
[1733168632035,0.208866,95755.0,95754.0,0.00231565]
[1733168633372,0.209866,95755.0,95754.0,0.01131565]
[1733168633588,0.209866,95755.0,95754.0,0.02596284]
[1733168633806,0.001,95755.0,95754.0,0.13480805]
[1733168634517,0.024,95755.0,95754.0,0.13480805]
[1733168634735,0.001,95755.0,95754.0,0.13480805]
[1733168634947,0.001,95755.0,95754.0,0.26430805]
[1733168639508,0.001,95755.0,95754.0,0.16146284]
[1733168642965,0.001,95755.0,95754.0,0.14681565]
[1733168643213,0.04448145,95755.0,95754.0,0.01731565]
[1733168643456,0.06562548,95755.0,95754.0,0.01731565]
[1733168643927,0.06562548,95755.0,95754.0,0.24996086]
[1733168643928,0.001,95755.0,95754.0,0.24996086]
[1733168643932,0.208828,95773.0,95754.0,0.24996086]
[1733168644165,0.0762,95803.0,95763.0,0.208848]
[1733168644166,0.208809,95782.0,95763.0,0.208848]
[1733168644410,0.208809,95782.0,95756.0,0.15837452]
[1733168644411,0.04162548,95792.0,95770.0,0.208832]
[1733168644634,0.208787,95791.0,95773.0,0.0819]
[1733168644870,0.2088,95786.0,95774.0,0.10284521]
[1733168645087,0.208806,95783.0,95775.0,0.0231693]
[1733168645318,0.208806,95783.0,95776.0,0.10284521]
[1733168645535,0.023,95782.0,95776.0,0.10284521]
[1733168645795,0.023,95783.0,95776.0,0.10284521]
[1733168646009,0.023,95781.0,95776.0,0.10284521]
[1733168646225,0.023,95781.0,95777.0,0.02530145]
[1733168646439,0.023,95779.0,95778.0,0.10284521]
[1733168647334,0.023,95781.0,95778.0,0.10284521]
[1733168648067,0.023,95782.0,95778.0,0.10284521]
[1733168648290,0.208805,95783.0,95778.0,0.10284521]
[1733168648526,0.023,95782.0,95779.0,0.02581467]
[1733168648750,0.208809,95781.0,95780.0,0.10284521]
[1733168648961,0.2326743,95781.0,95780.0,0.10284521]
[1733168649396,0.0008653,95781.0,95780.0,0.10284521]
[1733168649611,0.0008653,95781.0,95780.0,0.1244012]
[1733168650285,0.0008653,95781.0,95780.0,0.1324012]
[1733168651187,0.0008653,95781.0,95780.0,0.2576012]
[1733168651677,0.0008653,95781.0,95780.0,0.2616012]
[1733168658422,0.023,95788.0,95780.0,0.2616012]
[1733168658423,0.23138302,95788.0,95780.0,0.2616012]
[1733168658664,0.208802,95785.0,95781.0,0.06759161]
[1733168658876,0.208802,95785.0,95782.0,0.10284521]
[1733168659149,0.23138302,95788.0,95782.0,0.10284521]
[1733168660475,0.23138302,95788.0,95782.0,0.10684521]
[1733168661375,0.023,95789.0,95783.0,0.0807]
[1733168661592,0.023,95789.0,95784.0,0.13529449]
[1733168662258,0.208794,95788.0,95784.0,0.13529449]
[1733168662511,0.023,95787.0,95784.0,0.13529449]
[1733168662728,0.023,95785.0,95784.0,0.10290381]
[1733168662959,0.023,95785.0,95784.0,0.10690381]
[1733168663185,0.023,95785.0,95784.0,0.10290381]
[1733168663627,0.023,95787.0,95784.0,0.10690381]
[1733168663848,0.023,95787.0,95785.0,0.02549598]
[1733168664070,0.023,95787.0,95786.0,0.10284521]
[1733168664317,0.023,95792.0,95786.0,0.10284521]
[1733168664529,0.023,95790.0,95786.0,0.10284521]
[1733168664737,0.023,95792.0,95786.0,0.10284521]
[1733168664996,0.231769,95800.0,95787.0,0.02784558]
[1733168665208,0.023,95796.0,95788.0,0.23214521]
[1733168665413,0.417558,95795.0,95788.0,0.23214521]
[1733168665644,0.023,95794.0,95788.0,0.23214521]
[1733168666529,0.0008651,95798.0,95788.0,0.23214521]
[1733168666735,0.0008651,95798.0,95789.0,0.02795249]
[1733168666991,0.023,95797.0,95790.0,0.10284521]
[1733168667892,0.023,95795.0,95790.0,0.10284521]
[1733168668133,0.023,95793.0,95790.0,0.10284521]
[1733168668351,0.023,95795.0,95791.0,0.02583088]
[1733168668611,0.023,95795.0,95792.0,0.10284521]
[1733168668811,0.023,95793.0,95792.0,0.10284521]
[1733168669015,0.023,95795.0,95792.0,0.10284521]
[1733168669245,0.023,95793.0,95792.0,0.10284521]
[1733168669899,0.023,95793.0,95792.0,0.11429469]
[1733168670325,0.023,95793.0,95792.0,0.11729469]
[1733168670814,0.023,95793.0,95792.0,0.005]
[1733168671269,0.023,95793.0,95792.0,0.003]
[1733168671511,0.023,95793.0,95792.0,0.002]
[1733168671722,0.023,95793.0,95792.0,0.006]
[1733168673071,0.0238654,95793.0,95792.0,0.006]
[1733168673532,0.0238654,95793.0,95792.0,0.01953]
[1733168676514,0.0008654,95793.0,95792.0,0.01953]
[1733168677404,0.0008654,95793.0,95792.0,0.006]
[1733168678336,0.06734685,95793.0,95792.0,0.006]
[1733168679524,0.06734685,95793.0,95792.0,0.002]
[1733168680940,0.04434685,95793.0,95792.0,0.002]
[1733168681377,0.04434685,95793.0,95792.0,0.003]
[1733168681638,0.04249088,95793.0,95792.0,0.003]
[1733168681826,0.04249088,95793.0,95784.0,5.86e-05]
[1733168682067,0.2088,95785.0,95784.0,5.86e-05]
[1733168682334,0.0008654,95793.0,95784.0,0.22620381]
[1733168682549,0.208787,95791.0,95785.0,0.12546559]
[1733168683253,0.0008654,95793.0,95785.0,0.12546559]
[1733168683476,0.0008654,95793.0,95792.0,0.001]
[1733168684848,0.208785,95792.0,95785.0,0.12546559]
[1733168685071,0.208798,95786.0,95785.0,0.10384521]
[1733168685295,0.208798,95786.0,95785.0,0.12673861]
[1733168685556,0.208798,95786.0,95785.0,0.12573861]
[1733168685770,0.208798,95786.0,95785.0,0.12773861]
[1733168685994,0.208798,95786.0,95785.0,0.12573861]
[1733168686480,0.208798,95786.0,95785.0,0.0338934]
[1733168686701,0.208798,95786.0,95785.0,0.011]
[1733168688735,0.208795,95788.0,95785.0,0.011]
[1733168689436,0.41759,95788.0,95785.0,0.011]
[1733168689666,0.41759,95788.0,95785.0,0.004]
[1733168689899,0.41759,95788.0,95785.0,0.006]
[1733168690408,0.41759,95788.0,95786.0,0.04983169]
[1733168691072,0.41759,95788.0,95785.0,0.006]
[1733168691073,0.41759,95788.0,95785.0,0.009]
[1733168691520,0.41759,95788.0,95785.0,0.006]
[1733168691743,0.41759,95788.0,95786.0,0.003]
[1733168692198,0.41759,95788.0,95786.0,0.006]
[1733168692427,0.41759,95788.0,95784.0,0.0754586]
[1733168692690,0.41759,95788.0,95785.0,0.05923169]
[1733168692920,0.41759,95788.0,95785.0,0.05323169]
[1733168693139,0.41759,95788.0,95786.0,0.006]
[1733168693621,0.41759,95788.0,95785.0,0.004]
[1733168693858,0.41759,95788.0,95785.0,0.01]
[1733168694547,0.41759,95788.0,95785.0,0.006]
[1733168694998,0.41759,95788.0,95786.0,0.004]
[1733168695476,0.41759,95788.0,95786.0,0.006]
[1733168695690,0.41759,95788.0,95784.0,5.86e-05]
[1733168695929,0.41759,95788.0,95785.0,0.008]
[1733168696157,0.41759,95788.0,95785.0,0.004]
[1733168696382,0.41759,95788.0,95786.0,0.004]
[1733168696604,0.41759,95788.0,95784.0,0.02521277]
[1733168697059,0.41759,95788.0,95784.0,0.03121277]
[1733168697529,0.41759,95788.0,95786.0,0.002]
[1733168698016,0.41759,95788.0,95785.0,0.0524968]
[1733168698906,0.41759,95788.0,95786.0,0.006]
[1733168699155,0.41759,95788.0,95786.0,0.01]
[1733168699383,0.41759,95788.0,95786.0,0.004]
[1733168699830,0.41759,95788.0,95786.0,0.05393648]
[1733168700051,0.41759,95788.0,95786.0,0.05993648]
[1733168700513,0.41759,95788.0,95786.0,0.006]
[1733168700754,0.45921548,95788.0,95786.0,0.006]
[1733168701001,0.19348145,95787.0,95786.0,0.006]
[1733168701477,0.23716657,95787.0,95786.0,0.006]
[1733168701698,0.2847106,95787.0,95786.0,0.01]
[1733168701925,0.2847106,95787.0,95786.0,0.004]
[1733168702155,0.19162548,95785.0,95784.0,5.86e-05]
[1733168702375,0.19348145,95785.0,95784.0,5.86e-05]
[1733168703539,0.19348145,95785.0,95784.0,0.0030586]
[1733168704236,0.19348145,95785.0,95784.0,0.0050586]
[1733168704707,0.34698145,95785.0,95784.0,0.0050586]
[1733168704942,0.46865581,95785.0,95784.0,0.0050586]
[1733168705193,0.46956047,95785.0,95784.0,6e-07]
[1733168705597,0.46956047,95785.0,95781.0,0.00091203]
[1733168705598,0.023,95782.0,95781.0,0.00091203]
[1733168705694,0.381807,95782.0,95781.0,0.00091203]
[1733168705945,0.54696281,95782.0,95781.0,0.00097066]
[1733168706172,0.54696281,95782.0,95781.0,6.6e-07]
[1733168706638,0.74696281,95782.0,95781.0,6.6e-07]
[1733168706862,0.87816281,95782.0,95781.0,6.6e-07]
[1733168708472,1.07816281,95782.0,95781.0,6.6e-07]
[1733168708713,0.47528948,95756.0,95748.0,0.00173]
[1733168708958,0.47528948,95756.0,95755.0,0.00231685]
[1733168709436,0.4959746,95756.0,95755.0,0.00231685]
[1733168709916,0.49835239,95756.0,95755.0,0.00231685]
[1733168710133,0.49835239,95756.0,95755.0,0.00431685]
[1733168710359,0.44655239,95756.0,95755.0,0.00431685]
[1733168710600,0.40048948,95756.0,95755.0,0.00431685]
[1733168710823,0.40048948,95756.0,95755.0,0.00531685]
[1733168712282,0.358864,95756.0,95755.0,0.00531685]
[1733168712552,0.40048948,95756.0,95755.0,0.00531685]
[1733168717013,0.20886,95758.0,95755.0,0.00531685]
[1733168717240,0.20886,95758.0,95749.0,0.07220936]
[1733168717476,0.20886,95758.0,95750.0,0.15114521]
[1733168717722,0.208854,95761.0,95750.0,0.15114521]
[1733168717949,0.208862,95757.0,95750.0,0.15114521]
[1733168718173,0.208862,95757.0,95755.0,0.002]
[1733168718862,0.208862,95757.0,95755.0,0.003]
[1733168719104,0.208863,95757.0,95755.0,0.001]
[1733168719367,0.208848,95763.0,95756.0,0.10284521]
[1733168719647,0.208851,95762.0,95756.0,0.10284521]
[1733168719907,0.04162548,95773.0,95757.0,0.01787273]
[1733168720160,0.208835,95769.0,95758.0,0.15104521]
[1733168720392,0.208835,95769.0,95759.0,0.0777]
[1733168720616,0.208835,95769.0,95760.0,0.10284521]
[1733168721590,0.208843,95766.0,95760.0,0.10284521]
[1733168721822,0.20882,95776.0,95762.0,0.1218]
[1733168722077,0.20882,95776.0,95760.0,0.10284521]
[1733168722078,0.208822,95776.0,95765.0,0.0754]
[1733168722307,0.208822,95776.0,95767.0,0.0754]
[1733168722535,0.208828,95773.0,95768.0,0.10284521]
[1733168724210,0.023,95773.0,95770.0,0.10284521]
[1733168724441,0.023,95779.0,95772.0,0.0488]
[1733168724674,0.023,95779.0,95773.0,0.10284521]
[1733168724922,0.208816,95778.0,95773.0,0.10284521]
[1733168725146,0.208813,95780.0,95773.0,0.10284521]
[1733168725403,0.20882,95777.0,95773.0,0.10284521]
[1733168725631,0.20882,95777.0,95774.0,0.02517562]
[1733168725855,0.20882,95777.0,95775.0,0.10284521]
[1733168726980,0.41764,95777.0,95774.0,0.02517562]
[1733168727236,0.41764,95777.0,95774.0,0.10284521]
[1733168730531,0.35881,95781.0,95767.0,0.0754]
[1733168730532,0.208827,95773.0,95767.0,0.0754]
[1733168730752,0.208827,95773.0,95762.0,0.0457]
[1733168730753,0.208848,95763.0,95762.0,0.0457]
[1733168730984,0.208857,95759.0,95758.0,0.0774]
[1733168732248,0.208851,95762.0,95758.0,0.0774]
[1733168732249,0.208851,95762.0,95758.0,0.19283823]
[1733168732506,0.208838,95768.0,95758.0,0.19283823]
[1733168732507,0.208845,95765.0,95759.0,0.14824521]
[1733168732727,0.208846,95765.0,95759.0,0.14824521]
[1733168733509,0.208811,95780.0,95759.0,0.14824521]
[1733168733790,0.19162548,95781.0,95760.0,0.02739514]
[1733168734001,0.19162548,95781.0,95761.0,0.10284521]
[1733168734002,0.208834,95770.0,95761.0,0.10284521]
[1733168734248,0.208841,95767.0,95761.0,0.10284521]
[1733168734507,0.208848,95764.0,95761.0,0.10284521]
[1733168734750,0.208848,95764.0,95762.0,0.02764479]
[1733168734964,0.208848,95764.0,95763.0,0.10284521]
[1733168735680,0.208842,95767.0,95763.0,0.10284521]
[1733168735926,0.15,95777.0,95764.0,0.0782]
[1733168736171,0.40043648,95781.0,95765.0,0.10284521]
[1733168736172,0.208832,95771.0,95765.0,0.10284521]
[1733168736403,0.208832,95771.0,95766.0,0.02610057]
[1733168736641,0.15,95779.0,95767.0,0.10284521]
[1733168736878,0.208822,95775.0,95767.0,0.10284521]
[1733168737121,0.20883,95772.0,95767.0,0.10284521]
[1733168737382,0.20883,95772.0,95768.0,0.02161458]
[1733168737661,0.15,95781.0,95769.0,0.10284521]
[1733168737880,0.19162548,95781.0,95769.0,0.10284521]
[1733168738118,0.208826,95774.0,95769.0,0.10284521]
[1733168738346,0.208827,95773.0,95770.0,0.02026598]
[1733168738575,0.19162548,95781.0,95770.0,0.12311119]
[1733168738804,0.208831,95772.0,95770.0,0.12311119]
[1733168739039,0.208831,95772.0,95771.0,0.02013112]
[1733168739484,0.208828,95773.0,95771.0,0.02013112]
[1733168739963,0.208828,95773.0,95770.0,0.10284521]
[1733168740446,0.208828,95773.0,95770.0,0.10208985]
[1733168740684,0.04362548,95781.0,95770.0,0.10208985]
[1733168740905,0.04162548,95781.0,95770.0,0.10208985]
[1733168741119,0.208828,95773.0,95771.0,0.002]
[1733168741338,0.208828,95773.0,95772.0,0.01050056]
[1733168741831,0.0008651,95786.0,95773.0,0.0484]
[1733168741833,0.0008651,95786.0,95774.0,0.0816]
[1733168741834,0.21081,95781.0,95774.0,0.0816]
[1733168742086,0.208817,95778.0,95775.0,0.10284521]
[1733168742306,0.417634,95778.0,95775.0,0.10284521]
[1733168742533,0.417634,95778.0,95776.0,0.02433458]
[1733168742980,0.417634,95778.0,95771.0,0.002]
[1733168742981,0.417649,95774.0,95771.0,0.002]
[1733168743931,0.04162548,95781.0,95767.0,0.0816]
[1733168743932,0.208838,95768.0,95767.0,0.0816]
[1733168745089,0.208846,95764.0,95763.0,0.0484]
[1733168745316,0.208846,95764.0,95763.0,0.2069108]
[1733168745563,0.208838,95768.0,95763.0,0.2069108]
[1733168745808,0.208838,95768.0,95764.0,0.10284521]
[1733168746029,0.208822,95775.0,95764.0,0.10284521]
[1733168746472,0.0008654,95768.0,95764.0,0.10284521]
[1733168746717,0.0008654,95768.0,95765.0,0.05099568]
[1733168746947,0.0008654,95768.0,95767.0,0.0774]
[1733168747170,0.0008654,95768.0,95767.0,0.18024521]
[1733168747411,0.0008654,95768.0,95767.0,0.22934521]
[1733168748561,0.0008654,95768.0,95767.0,0.23834521]
[1733168748821,0.0008654,95768.0,95767.0,0.34117667]
[1733168749717,0.0008654,95768.0,95767.0,0.34817667]
[1733168749933,0.0008654,95768.0,95767.0,0.33917667]
[1733168750165,0.0008654,95768.0,95767.0,0.34817667]
[1733168750405,0.0008654,95768.0,95767.0,0.34705171]
[1733168751638,0.0008654,95768.0,95767.0,0.37958536]
[1733168756195,0.0008654,95768.0,95767.0,0.04853365]
[1733168756501,0.06549088,95768.0,95767.0,0.016]
[1733168756730,0.44234664,95768.0,95767.0,0.016]
[1733168756992,0.44003609,95768.0,95767.0,0.016]
[1733168757512,0.44003609,95768.0,95767.0,0.007]
[1733168757734,0.44103609,95768.0,95767.0,0.007]
[1733168757987,0.25048948,95756.0,95747.0,0.0017262]
[1733168758211,0.42348948,95756.0,95747.0,0.0017262]
[1733168759705,0.381864,95756.0,95747.0,0.0017262]
[1733168759964,0.381864,95756.0,95755.0,0.0047302]
[1733168760192,0.42348948,95756.0,95755.0,0.0047302]
[1733168762354,0.42348948,95756.0,95755.0,0.0037302]
[1733168763125,0.40048948,95756.0,95755.0,0.0037302]
[1733168763861,0.40048948,95756.0,95755.0,0.0017302]
[1733168764845,0.47608948,95756.0,95755.0,0.0017302]
[1733168765074,0.57893469,95756.0,95755.0,0.0017302]
[1733168765312,0.57893469,95756.0,95755.0,2e-07]
[1733168765313,0.64833469,95756.0,95755.0,2e-07]
[1733168765583,0.11102548,95747.0,95746.0,3.9e-07]
[1733168765808,0.36618217,95747.0,95746.0,3.9e-07]
[1733168766051,0.36618217,95747.0,95746.0,7.3e-07]
[1733168766052,0.38749191,95747.0,95746.0,7.3e-07]
[1733168767781,0.38749191,95747.0,95733.0,0.0017284]
[1733168767782,0.62353748,95734.0,95733.0,1.3e-07]
[1733168768010,0.85548269,95734.0,95733.0,2.3e-07]
[1733168768243,0.85841879,95734.0,95733.0,2.3e-07]
[1733168768481,0.63248269,95734.0,95733.0,2.3e-07]
[1733168768961,0.63541879,95734.0,95733.0,2.3e-07]
[1733168769687,0.63641879,95734.0,95733.0,2.3e-07]
[1733168769937,0.66193266,95734.0,95733.0,2.3e-07]
[1733168770184,0.66793266,95734.0,95733.0,0.00100023]
[1733168770409,0.66193266,95734.0,95733.0,2.3e-07]
[1733168770646,0.86793266,95734.0,95733.0,6.3e-07]
[1733168770876,0.88761778,95734.0,95733.0,6.3e-07]
[1733168771111,0.88861778,95734.0,95733.0,6.3e-07]
[1733168771554,0.89761778,95734.0,95733.0,6.3e-07]
[1733168771781,0.208986,95700.0,95699.0,0.0017296]
[1733168772001,0.208986,95700.0,95699.0,0.00231803]
[1733168773605,0.209986,95700.0,95699.0,0.00931803]
[1733168773836,0.001,95700.0,95699.0,0.11216324]
[1733168774057,0.001,95700.0,95699.0,0.1317615]
[1733168774266,0.001,95700.0,95699.0,0.1357615]
[1733168774495,0.001,95700.0,95699.0,0.11616324]
[1733168776740,0.001,95700.0,95699.0,0.24346324]
[1733168776974,0.001,95700.0,95699.0,0.26646324]
[1733168777861,0.208923,95729.0,95701.0,0.15837452]
[1733168778091,0.208923,95729.0,95707.0,0.1273]
[1733168778326,0.04162548,95730.0,95708.0,0.31273142]
[1733168778523,0.208934,95724.0,95708.0,0.10376342]
[1733168778734,0.208925,95728.0,95713.0,0.208957]
[1733168778957,0.04162548,95739.0,95715.0,0.208952]
[1733168779173,0.208926,95728.0,95716.0,0.1708508]
[1733168779409,0.208926,95728.0,95716.0,0.17106795]
[1733168779620,0.19162548,95739.0,95716.0,0.17106795]
[1733168779830,0.208928,95727.0,95717.0,0.00091778]
[1733168780039,0.208905,95737.0,95720.0,0.208942]
[1733168780305,0.04162548,95744.0,95721.0,0.1037629]
[1733168780514,0.208926,95728.0,95721.0,0.10284521]
[1733168780733,0.00231108,95743.0,95721.0,0.10284521]
[1733168780951,0.00231108,95743.0,95722.0,0.08437241]
[1733168781167,0.208928,95727.0,95723.0,0.10284521]
[1733168781383,0.417857,95727.0,95723.0,0.10284521]
[1733168781818,0.20891,95735.0,95719.0,0.1263]
[1733168781819,0.208942,95720.0,95719.0,0.0781]
[1733168782056,0.208942,95720.0,95719.0,0.18094521]
[1733168782707,0.208945,95719.0,95716.0,0.00021715]
[1733168783403,0.15,95730.0,95716.0,0.00021715]
[1733168783623,0.208932,95725.0,95717.0,0.10284521]
[1733168784326,0.208932,95725.0,95719.0,0.005]
[1733168784535,0.208934,95724.0,95720.0,0.10284521]
[1733168785437,0.417868,95724.0,95720.0,0.10284521]
[1733168786109,0.417868,95724.0,95720.0,0.10684521]
[1733168786558,0.417868,95724.0,95720.0,0.011]
[1733168787256,0.208934,95724.0,95716.0,0.00021715]
[1733168787463,0.208949,95717.0,95716.0,0.00021715]
[1733168787674,0.208925,95728.0,95716.0,0.11530408]
[1733168787887,0.208925,95728.0,95717.0,0.10284521]
[1733168788131,0.208933,95725.0,95717.0,0.10284521]
[1733168788769,0.208934,95724.0,95717.0,0.10284521]
[1733168789195,0.208922,95730.0,95719.0,0.0814]
[1733168789465,0.208914,95733.0,95719.0,0.0814]
[1733168789466,0.15,95732.0,95720.0,0.10376315]
[1733168789737,0.15,95732.0,95721.0,0.08893293]
[1733168789972,0.15,95732.0,95722.0,0.10284521]
[1733168790211,0.208927,95728.0,95722.0,0.10284521]
[1733168790655,0.15,95730.0,95722.0,0.10284521]
[1733168791317,0.25051848,95743.0,95723.0,0.00091796]
[1733168791536,0.04162548,95741.0,95724.0,0.10376283]
[1733168791758,0.208912,95735.0,95724.0,0.10376283]
[1733168792001,0.208912,95735.0,95724.0,0.10284521]
[1733168792702,0.208905,95737.0,95724.0,0.10484521]
[1733168792947,0.208905,95737.0,95725.0,0.04443882]
[1733168793171,0.208903,95738.0,95726.0,0.10284521]
[1733168793382,0.208903,95738.0,95727.0,0.0824]
[1733168793615,0.208903,95738.0,95728.0,0.10376287]
[1733168793833,0.208896,95742.0,95728.0,0.10376287]
[1733168794053,0.15,95739.0,95729.0,0.08985357]
[1733168794277,0.15,95739.0,95730.0,0.10376278]
[1733168794791,0.208912,95734.0,95730.0,0.10306239]
[1733168794991,0.208912,95734.0,95730.0,0.10365082]
[1733168795209,0.0008656,95735.0,95730.0,0.10365082]
[1733168795425,0.0008656,95735.0,95731.0,0.02836356]
[1733168795640,0.0008656,95735.0,95732.0,0.10284521]
[1733168795928,0.0008656,95735.0,95732.0,0.10306239]
[1733168796416,0.0008656,95735.0,95733.0,0.00091757]
[1733168796632,0.0008656,95735.0,95734.0,0.18524521]
[1733168796857,0.0008656,95735.0,95734.0,0.5216464]
[1733168797092,0.0008656,95735.0,95734.0,0.31181744]
[1733168798530,0.0008656,95735.0,95734.0,0.31481744]
[1733168799268,0.0008656,95735.0,95734.0,0.00321718]
[1733168799719,0.0008656,95735.0,95734.0,0.00821718]
[1733168799975,0.0008656,95735.0,95734.0,0.00321718]
[1733168800465,0.0008656,95735.0,95734.0,0.00521718]
[1733168800964,0.0008656,95735.0,95734.0,0.18876239]
[1733168801236,0.0008656,95735.0,95734.0,0.25689747]
[1733168801468,0.0008656,95735.0,95734.0,0.25389747]
[1733168801704,0.0008656,95735.0,95734.0,0.25489747]
[1733168802184,0.0008656,95735.0,95734.0,0.25389747]
[1733168802674,0.0008656,95735.0,95734.0,0.25389748]
[1733168802933,0.0008656,95735.0,95734.0,0.24889748]
[1733168803396,0.0008656,95735.0,95734.0,0.25189748]
[1733168803761,0.0008656,95735.0,95734.0,0.24889748]
[1733168803998,0.0008656,95735.0,95734.0,0.419272]
[1733168804254,0.0008656,95735.0,95734.0,0.45169251]
[1733168804510,0.0008656,95735.0,95734.0,0.44869251]
[1733168804968,0.0008656,95735.0,95734.0,0.67169251]
[1733168805218,0.0008652,95767.0,95743.0,0.337792]
[1733168805460,0.0008652,95767.0,95743.0,0.47327491]
[1733168806620,0.0008652,95767.0,95743.0,0.47427491]
[1733168807087,0.0008652,95767.0,95743.0,0.47327491]
[1733168807304,0.0008652,95767.0,95743.0,0.4418544]
[1733168807575,0.0008652,95767.0,95743.0,0.54368586]
[1733168807820,0.0008652,95767.0,95743.0,0.70206038]
[1733168808044,0.0008652,95767.0,95743.0,1.11642793]
[1733168808511,0.0008652,95767.0,95743.0,1.10742792]
[1733168809001,0.0008652,95767.0,95743.0,1.11742792]
[1733168809249,0.0008652,95767.0,95743.0,1.10842792]
[1733168809746,0.0008652,95767.0,95743.0,1.10942792]
[1733168810201,0.0008652,95767.0,95743.0,1.10842792]
[1733168810434,0.0008652,95767.0,95743.0,1.10805106]
[1733168810661,0.0008652,95767.0,95743.0,1.10905106]
[1733168811848,0.0008652,95767.0,95743.0,1.10705106]
[1733168812071,0.0008652,95767.0,95743.0,1.12419791]
[1733168812340,0.0008652,95767.0,95743.0,1.12619791]
[1733168812558,0.0008652,95767.0,95743.0,1.10219791]
[1733168812816,0.0008652,95767.0,95743.0,1.10319791]
[1733168813061,0.0008652,95767.0,95743.0,1.10219791]
[1733168814051,0.0008652,95767.0,95743.0,0.95319791]
[1733168814502,0.208819,95777.0,95743.0,0.95319791]
[1733168814503,0.04162548,95799.0,95767.0,0.0459]
[1733168814729,0.200865,95828.0,95767.0,0.0459]
[1733168814730,0.208742,95812.0,95785.0,0.5375]
[1733168814960,0.208744,95812.0,95785.0,0.79893691]
[1733168815210,0.20875,95809.0,95785.0,0.79893691]
[1733168815466,0.20875,95809.0,95785.0,0.7989369]
[1733168815934,0.20875,95809.0,95785.0,0.79999558]
[1733168816152,0.20875,95809.0,95785.0,0.89596907]
[1733168816373,0.20875,95809.0,95785.0,0.69496907]
[1733168816595,0.20875,95809.0,95785.0,0.89596907]
[1733168816826,0.208758,95805.0,95785.0,0.89596907]
[1733168817078,0.20875,95809.0,95785.0,0.89596907]
[1733168817814,0.20875,95809.0,95788.0,0.15837452]
[1733168817815,0.00043847,95798.0,95788.0,0.15837452]
[1733168818053,0.00043847,95798.0,95789.0,0.31255131]
[1733168818270,0.00043847,95798.0,95791.0,0.208787]
[1733168818495,0.00043847,95798.0,95792.0,0.10375938]
[1733168818739,0.00043847,95798.0,95792.0,0.10397655]
[1733168820357,0.00043847,95798.0,95792.0,0.11297655]
[1733168820619,0.00043847,95798.0,95792.0,0.11206238]
[1733168820848,0.20523075,95806.0,95793.0,0.09978474]
[1733168821062,0.04393478,95808.0,95794.0,0.10284521]
[1733168821285,0.208773,95798.0,95794.0,0.10306238]
[1733168821547,0.208773,95798.0,95794.0,0.10306237]
[1733168821774,0.208765,95802.0,95795.0,0.01190624]
[1733168821999,0.208762,95803.0,95796.0,0.10284521]
[1733168822259,0.208755,95806.0,95796.0,0.10306237]
[1733168822965,0.208767,95801.0,95796.0,0.10306237]
[1733168823215,0.208767,95801.0,95797.0,0.01219686]
[1733168823454,0.023,95809.0,95797.0,0.01219686]
[1733168823664,0.208767,95801.0,95797.0,0.01219686]